bitfinex-derivatives/quotes_BTCF0:USTF0_20251023
["timestamp","ask_amount","ask_price","bid_price","bid_amount"]
[1761230782638,0.23957661,109690.0,109680.0,0.1487276]
[1761230782829,0.51788863,109690.0,109680.0,0.1487276]
[1761230783032,0.02806404,109690.0,109680.0,0.4287276]
[1761230783230,0.005,109690.0,109680.0,0.4287276]
[1761230783938,0.005,109690.0,109680.0,1.01573623]
[1761230784335,0.02930394,109710.0,109700.0,0.149931]
[1761230784541,0.35514394,109710.0,109700.0,0.429931]
[1761230784732,0.02930394,109710.0,109700.0,0.149931]
[1761230784931,0.0048,109710.0,109700.0,0.389931]
[1761230785431,0.02930394,109710.0,109700.0,0.149931]
[1761230785638,0.03130394,109710.0,109700.0,0.409931]
[1761230785841,0.21831257,109710.0,109700.0,0.149931]
[1761230786034,0.03630394,109710.0,109700.0,0.149931]
[1761230786831,0.22331257,109710.0,109700.0,0.149931]
[1761230787033,0.31443497,109710.0,109700.0,0.149931]
[1761230787436,0.22331257,109710.0,109700.0,0.149931]
[1761230787733,0.31443497,109710.0,109700.0,0.149931]
[1761230787932,0.34711979,109710.0,109700.0,0.149931]
[1761230788341,0.32261585,109710.0,109700.0,0.149931]
[1761230789540,0.37156495,109710.0,109700.0,0.149931]
[1761230789844,0.37156495,109710.0,109700.0,0.1046507]
[1761230790143,0.37156495,109710.0,109700.0,0.01352]
[1761230790343,0.33888013,109710.0,109700.0,0.01352]
[1761230791435,0.28993103,109710.0,109700.0,0.01352]
[1761230791638,0.28993103,109710.0,109700.0,0.1501507]
[1761230791837,0.33900646,109710.0,109700.0,0.1501507]
[1761230792238,0.33900974,109710.0,109700.0,0.1501507]
[1761230792440,0.28993103,109710.0,109700.0,0.1501507]
[1761230792641,0.28993103,109710.0,109700.0,0.05902]
[1761230793244,0.28993103,109710.0,109700.0,0.03675]
[1761230793440,0.28993103,109710.0,109700.0,0.01352]
[1761230793740,0.68993103,109710.0,109700.0,0.01352]
[1761230793946,0.091139,109690.0,109680.0,0.1500974]
[1761230794147,0.66120896,109690.0,109680.0,0.1500974]
[1761230794350,0.65973243,109690.0,109680.0,0.1500973]
[1761230794646,0.68427406,109690.0,109680.0,0.03668]
[1761230795039,0.68427406,109690.0,109680.0,0.01345]
[1761230795343,0.68109281,109690.0,109680.0,0.01345]
[1761230796347,0.49408418,109690.0,109680.0,0.1500973]
[1761230796647,0.65802877,109690.0,109680.0,0.05895]
[1761230796837,0.68109281,109690.0,109680.0,0.1500973]
[1761230797249,0.67809281,109690.0,109680.0,0.1500973]
[1761230798048,0.67609281,109690.0,109680.0,0.1500973]
[1761230798750,0.48908418,109690.0,109680.0,0.1500973]
[1761230798940,0.65302877,109690.0,109680.0,0.1500973]
[1761230799240,0.67609281,109690.0,109680.0,0.1500973]
[1761230799939,0.0911556,109670.0,109660.0,0.05895]
[1761230800244,0.63665748,109670.0,109660.0,0.1501139]
[1761230800438,0.65972152,109670.0,109660.0,0.1501139]
[1761230800639,0.65972152,109670.0,109660.0,0.15628187]
[1761230800840,0.65972152,109670.0,109660.0,0.1501139]
[1761230801246,0.70880266,109670.0,109660.0,0.1501139]
[1761230801443,0.70980266,109670.0,109660.0,0.1501139]
[1761230801846,0.67606941,109670.0,109660.0,0.1501139]
[1761230802352,0.7087886,109670.0,109660.0,0.1501139]
[1761230802550,0.7087886,109670.0,109660.0,0.15637916]
[1761230803050,0.7087886,109670.0,109660.0,0.05895]
[1761230804351,0.7087886,109670.0,109660.0,0.1501139]
[1761230805252,0.65970746,109670.0,109660.0,0.1501139]
[1761230806448,0.68422728,109670.0,109660.0,0.1501139]
[1761230806653,0.65154809,109670.0,109660.0,0.1501139]
[1761230806847,0.32574809,109670.0,109660.0,0.1501139]
[1761230807153,0.30268405,109670.0,109660.0,0.1501139]
[1761230807448,0.62848405,109670.0,109660.0,0.1501139]
[1761230807645,0.65154809,109670.0,109660.0,0.1501139]
[1761230808046,0.65154809,109670.0,109660.0,0.1511139]
[1761230809542,0.65154809,109670.0,109660.0,0.05995]
[1761230809857,0.65154809,109670.0,109660.0,0.1511139]
[1761230810757,0.62702827,109670.0,109660.0,0.1501139]
[1761230811559,0.02306404,109670.0,109660.0,0.1501139]
[1761230811851,0.30268255,109680.0,109670.0,0.1366556]
[1761230812058,0.62844255,109680.0,109670.0,0.1366556]
[1761230812258,0.65150659,109680.0,109670.0,0.1366556]
[1761230812445,0.32574659,109680.0,109670.0,0.1366556]
[1761230812649,0.62848255,109680.0,109670.0,0.1366556]
[1761230812846,0.65154659,109680.0,109670.0,0.1366556]
[1761230813456,0.30222677,109680.0,109670.0,0.1366556]
[1761230813652,0.60492273,109680.0,109670.0,0.1366556]
[1761230813851,0.65250659,109680.0,109670.0,0.1366556]
[1761230814958,0.53683267,109680.0,109670.0,0.1366556]
[1761230815257,0.02506404,109680.0,109670.0,0.5366556]
[1761230815452,0.002,109680.0,109670.0,0.5866556]
[1761230815759,0.002,109680.0,109670.0,0.5366556]
[1761230815959,0.18900863,109680.0,109670.0,0.8366556]
[1761230816558,0.002,109680.0,109670.0,0.8366556]
[1761230816751,0.002,109680.0,109670.0,0.5366556]
[1761230816946,0.002,109680.0,109670.0,0.8466556]
[1761230818457,0.002,109680.0,109670.0,0.6466556]
[1761230818861,0.002,109680.0,109670.0,0.8166556]
[1761230820161,0.002,109680.0,109670.0,0.6966556]
[1761230820362,0.002,109680.0,109670.0,0.8266556]
[1761230820965,0.002,109680.0,109670.0,0.6400056]
[1761230821168,0.002,109680.0,109670.0,0.8300056]
[1761230823370,0.002,109680.0,109670.0,0.6500056]
[1761230823563,0.002,109680.0,109670.0,0.8600056]
[1761230823969,0.04758386,109700.0,109690.0,0.149599]
[1761230824162,0.02451982,109700.0,109690.0,0.149599]
[1761230824370,0.57472764,109710.0,109700.0,0.1495909]
[1761230824664,0.56507249,109710.0,109700.0,0.1495909]
[1761230825164,0.54055267,109710.0,109700.0,0.4095909]
[1761230825471,0.54055267,109710.0,109700.0,0.4395909]
[1761230825671,0.54055267,109710.0,109700.0,0.1495909]
[1761230825968,0.02786404,109710.0,109700.0,0.1495909]
[1761230826161,0.0048,109710.0,109700.0,0.4295909]
[1761230826359,0.03271919,109730.0,109700.0,0.8295909]
[1761230826360,0.33535354,109730.0,109700.0,0.8295909]
[1761230826566,0.34586572,109730.0,109720.0,0.1362241]
[1761230826868,0.69198396,109730.0,109720.0,0.04511]
[1761230827070,0.0911171,109720.0,109710.0,0.1140024]
[1761230827268,0.40451615,109720.0,109710.0,0.1362324]
[1761230828063,0.40451615,109720.0,109710.0,0.14222715]
[1761230829467,0.31339905,109720.0,109710.0,0.39222715]
[1761230829666,0.004,109720.0,109710.0,0.44222715]
[1761230829872,0.004,109720.0,109710.0,0.42222715]
[1761230830073,0.31739905,109720.0,109710.0,0.14222715]
[1761230830570,0.40851315,109720.0,109710.0,0.14222715]
[1761230830966,0.31539905,109720.0,109710.0,0.14222715]
[1761230831166,0.31339905,109720.0,109710.0,0.14322715]
[1761230831476,0.40451325,109720.0,109710.0,0.14322715]
[1761230833371,0.40451325,109720.0,109710.0,0.1372324]
[1761230833674,0.31339905,109720.0,109710.0,0.1372324]
[1761230834076,0.31339905,109720.0,109710.0,0.14330613]
[1761230834274,0.40451315,109720.0,109710.0,0.14330613]
[1761230836078,0.40451315,109720.0,109710.0,0.15665613]
[1761230836281,0.31339905,109720.0,109710.0,0.42665613]
[1761230836477,0.31339905,109720.0,109710.0,0.15665613]
[1761230837583,0.40451315,109720.0,109710.0,0.15665613]
[1761230837784,0.40451315,109720.0,109710.0,0.39665613]
[1761230838784,0.40451315,109720.0,109710.0,0.15665613]
[1761230838975,0.42903297,109720.0,109710.0,0.15665613]
[1761230839984,0.42903307,109720.0,109710.0,0.15665613]
[1761230840378,0.42903307,109720.0,109710.0,0.1505824]
[1761230841484,0.33791887,109720.0,109710.0,0.1505824]
[1761230841985,0.42903297,109720.0,109710.0,0.1505824]
[1761230842481,0.02451982,109720.0,109710.0,0.4195824]
[1761230842886,0.11563392,109720.0,109710.0,0.1495824]
[1761230843089,0.11563392,109720.0,109710.0,0.1505824]
[1761230843273,0.11563392,109720.0,109710.0,0.4605824]
[1761230843274,0.33791887,109720.0,109710.0,0.4605824]
[1761230843586,0.7939521,109730.0,109720.0,0.1467541]
[1761230843883,0.8850579,109730.0,109720.0,0.1467541]
[1761230846187,0.86053808,109730.0,109720.0,0.1467541]
[1761230846381,0.86053808,109730.0,109720.0,0.05662]
[1761230846572,0.86053808,109730.0,109720.0,0.1487341]
[1761230847688,0.86053808,109730.0,109720.0,0.1477341]
[1761230848285,0.90961922,109730.0,109720.0,0.1477341]
[1761230850687,0.74579644,109730.0,109720.0,0.1477341]
[1761230853282,0.71307725,109730.0,109720.0,0.1477341]
[1761230856087,0.71307725,109730.0,109720.0,0.05662]
[1761230856287,0.71307725,109730.0,109720.0,0.1477341]
[1761230857989,0.71291725,109730.0,109720.0,0.1477341]
[1761230859389,0.71291725,109730.0,109720.0,0.1487341]
[1761230859890,0.71291725,109730.0,109720.0,0.1477341]
[1761230860484,0.71291725,109730.0,109720.0,0.1262441]
[1761230860690,0.71291725,109730.0,109720.0,0.1487341]
[1761230862086,0.71291725,109730.0,109720.0,0.1477341]
[1761230862283,0.71291725,109730.0,109720.0,0.03413]
[1761230862587,0.71291725,109730.0,109720.0,0.1252441]
[1761230862982,0.71291725,109730.0,109720.0,0.03413]
[1761230863184,0.71291725,109730.0,109720.0,0.1252441]
[1761230863382,0.71291725,109730.0,109720.0,0.1262441]
[1761230863790,0.71291725,109730.0,109720.0,0.1252441]
[1761230864191,0.71291725,109730.0,109720.0,0.1477341]
[1761230877997,0.62181145,109730.0,109720.0,0.1477341]
[1761230878389,0.54708145,109730.0,109720.0,0.1477341]
[1761230878794,0.63818715,109730.0,109720.0,0.1477341]
[1761230879594,0.54708145,109730.0,109720.0,0.1477341]
[1761230880802,0.71290715,109730.0,109720.0,0.1477341]
[1761230881501,0.62180145,109730.0,109720.0,0.1477341]
[1761230881997,0.29644145,109730.0,109720.0,0.1977341]
[1761230882194,0.6313921,109730.0,109720.0,0.1977341]
[1761230882399,0.65445614,109730.0,109720.0,0.4477341]
[1761230882904,0.65445614,109730.0,109720.0,0.1477341]
[1761230883403,0.62164145,109730.0,109720.0,0.1477341]
[1761230883905,0.71274715,109730.0,109720.0,0.1477341]
[1761230884204,0.62164145,109730.0,109720.0,0.1487341]
[1761230884598,0.62164145,109730.0,109720.0,0.4177341]
[1761230884905,0.65444986,109730.0,109720.0,0.1477341]
[1761230885092,0.32924986,109730.0,109720.0,0.4777341]
[1761230885297,0.63134582,109730.0,109720.0,0.4777341]
[1761230885497,0.62993163,109730.0,109720.0,0.4377341]
[1761230885693,0.15519536,109730.0,109720.0,1.01731037]
[1761230885903,0.52861741,109750.0,109740.0,0.1483773]
[1761230886299,0.76928278,109750.0,109740.0,0.05728]
[1761230886506,0.76924278,109750.0,109740.0,0.1483774]
[1761230886705,0.6780737,109750.0,109740.0,0.1483774]
[1761230886907,0.7691628,109750.0,109740.0,0.1483774]
[1761230887406,0.7701628,109750.0,109740.0,0.1483774]
[1761230887604,0.7711628,109750.0,109740.0,0.1483774]
[1761230889306,0.0068,109750.0,109740.0,0.3983774]
[1761230889510,0.48145628,109750.0,109740.0,0.1483774]
[1761230889703,0.63099256,109750.0,109740.0,0.1483774]
[1761230891209,0.63099256,109750.0,109740.0,0.1983774]
[1761230891409,0.63099256,109750.0,109740.0,0.4883774]
[1761230891802,0.63099256,109750.0,109740.0,0.1983774]
[1761230892003,0.63099256,109750.0,109740.0,0.1483774]
[1761230892324,0.63099256,109750.0,109740.0,0.1983774]
[1761230892712,0.63099256,109750.0,109740.0,0.1483774]
[1761230895314,0.72208046,109750.0,109740.0,0.1483774]
[1761230897907,0.74436307,109750.0,109740.0,0.1483774]
[1761230898305,0.74436307,109750.0,109740.0,0.03626]
[1761230898707,0.0911045,109730.0,109720.0,0.03392]
[1761230899009,0.62407256,109730.0,109720.0,0.1480033]
[1761230899210,0.73746017,109730.0,109720.0,0.1480033]
[1761230899409,0.64635517,109730.0,109720.0,0.1480033]
[1761230900011,0.73746017,109730.0,109720.0,0.1480033]
[1761230900207,0.43838761,109730.0,109720.0,0.1480033]
[1761230900417,0.28971742,109740.0,109730.0,0.05728]
[1761230900605,0.7642537,109740.0,109730.0,0.05728]
[1761230900810,0.78654066,109740.0,109730.0,0.05728]
[1761230901212,0.93607694,109740.0,109730.0,0.05728]
[1761230901415,0.93607694,109740.0,109730.0,0.03626]
[1761230901717,0.0911046,109730.0,109720.0,0.1490017]
[1761230901920,0.39017716,109730.0,109720.0,0.1490017]
[1761230903819,0.39017716,109730.0,109720.0,0.1480017]
[1761230904518,0.29907256,109730.0,109720.0,0.1480017]
[1761230904718,0.29907256,109730.0,109720.0,0.1490017]
[1761230905511,0.39017706,109730.0,109720.0,0.1490029]
[1761230906919,0.29907256,109730.0,109720.0,0.1490029]
[1761230907612,0.02228696,109740.0,109730.0,0.1494645]
[1761230907812,0.46988904,109750.0,109740.0,0.1494562]
[1761230908013,0.44309486,109750.0,109740.0,0.1494562]
[1761230908416,0.4208079,109750.0,109740.0,0.1494562]
[1761230909017,0.71988046,109750.0,109740.0,0.1494562]
[1761230909217,0.74316742,109750.0,109740.0,0.1494562]
[1761230910020,0.74416742,109750.0,109740.0,0.1494562]
[1761230910715,0.65307952,109750.0,109740.0,0.1494562]
[1761230911020,0.74416752,109750.0,109740.0,0.1494562]
[1761230911207,0.65307952,109750.0,109740.0,0.1494562]
[1761230911407,0.17862324,109750.0,109740.0,0.1494562]
[1761230911613,0.48121628,109750.0,109740.0,0.1494562]
[1761230911822,0.50350324,109750.0,109740.0,0.1994562]
[1761230912119,2e-08,109750.0,109740.0,1.18852876]
[1761230912326,0.06835,109760.0,109750.0,0.149448]
[1761230912510,0.06835,109760.0,109750.0,2.86386428]
[1761230912912,0.06835,109760.0,109750.0,2.91274808]
[1761230913317,0.06835,109760.0,109750.0,2.46386428]
[1761230920918,0.14953628,109780.0,109770.0,0.05836]
[1761230921118,0.14953628,109780.0,109770.0,0.4594317]
[1761230921519,0.29907256,109780.0,109770.0,0.2994317]
[1761230922117,0.30007256,109780.0,109770.0,0.2994317]
[1761230922327,0.30107256,109780.0,109770.0,0.6241517]
[1761230923024,0.30107256,109780.0,109770.0,0.4741517]
[1761230923220,0.30107256,109780.0,109770.0,0.5241517]
[1761230923819,0.39213696,109780.0,109770.0,0.05836]
[1761230924129,0.0910727,109770.0,109760.0,0.1494351]
[1761230924421,0.39014526,109770.0,109760.0,0.1494351]
[1761230924632,1.11482526,109770.0,109760.0,0.03618]
[1761230924927,1.13660567,109770.0,109760.0,0.1272621]
[1761230925223,1.13660567,109770.0,109760.0,0.1494421]
[1761230925528,1.13860567,109770.0,109760.0,0.1494421]
[1761230926623,1.13860677,109770.0,109760.0,0.1494421]
[1761230929131,0.83953401,109770.0,109760.0,0.1494421]
[1761230929333,0.64753297,109770.0,109760.0,0.1494421]
[1761230929630,0.73860657,109770.0,109760.0,0.1494421]
[1761230930633,0.73860867,109770.0,109760.0,0.1494421]
[1761230930828,0.64753297,109770.0,109760.0,0.1494421]
[1761230932739,0.73861497,109770.0,109760.0,0.1494421]
[1761230938743,0.64753297,109770.0,109760.0,0.1494421]
[1761230939739,0.73861487,109770.0,109760.0,0.1494421]
[1761230940340,0.49799669,109770.0,109760.0,0.1494421]
[1761230940536,0.17331669,109770.0,109760.0,0.1494421]
[1761230940732,0.15153628,109770.0,109760.0,0.4894421]
[1761230940937,0.15153628,109770.0,109760.0,0.1994421]
[1761230941132,0.39215456,109770.0,109760.0,0.1494421]
[1761230941340,0.57434544,109770.0,109760.0,0.01331]
[1761230941540,0.0910903,109760.0,109750.0,0.1044054]
[1761230941737,0.0910986,109750.0,109740.0,0.1266331]
[1761230942033,0.42282576,109750.0,109740.0,0.03553]
[1761230942439,0.42282576,109750.0,109720.0,0.1479981]
[1761230942440,0.091107,109740.0,109720.0,0.1479981]
[1761230942744,0.59785788,109740.0,109730.0,0.1045354]
[1761230942939,0.61963829,109740.0,109730.0,0.01342]
[1761230943144,0.0911154,109730.0,109720.0,0.03564]
[1761230943444,0.12381691,109730.0,109720.0,0.03564]
[1761230943634,0.42288947,109730.0,109720.0,0.03564]
[1761230943831,0.42288947,109730.0,109720.0,0.1480037]
[1761230944235,0.29907256,109730.0,109720.0,0.1480037]
[1761230944441,0.29907256,109730.0,109720.0,0.1500037]
[1761230945145,0.39118686,109730.0,109720.0,0.1480037]
[1761230945347,0.39218686,109730.0,109720.0,0.1480037]
[1761230945642,0.30107256,109730.0,109720.0,0.1480037]
[1761230945842,0.39218686,109730.0,109720.0,0.1480037]
[1761230946543,0.30107256,109730.0,109720.0,0.1480037]
[1761230947338,0.15153628,109730.0,109720.0,0.1480037]
[1761230947543,0.47609628,109730.0,109720.0,0.1880037]
[1761230947743,0.49587669,109730.0,109720.0,0.1880037]
[1761230947941,0.32085297,109730.0,109720.0,0.1980037]
[1761230948145,0.29907256,109730.0,109720.0,0.1480037]
[1761230948342,0.29907256,109730.0,109720.0,0.1980037]
[1761230948846,0.14954886,109730.0,109720.0,0.1480037]
[1761230949249,0.24066316,109730.0,109720.0,0.1480037]
[1761230949452,0.14954886,109730.0,109720.0,0.1480037]
[1761230950053,0.14954886,109730.0,109720.0,0.1490037]
[1761230950352,0.24066316,109730.0,109720.0,0.1490037]
[1761230950953,0.14954886,109730.0,109720.0,0.1490037]
[1761230952044,0.24066316,109730.0,109720.0,0.1490037]
[1761230952645,0.14954886,109730.0,109720.0,0.1490037]
[1761230954453,0.24066176,109730.0,109720.0,0.05788]
[1761230956259,0.24066146,109730.0,109720.0,0.05788]
[1761230957858,0.82470877,109730.0,109720.0,0.001]
[1761230958065,0.87919069,109730.0,109720.0,0.001]
[1761230958265,0.69694032,109730.0,109720.0,0.001]
[1761230958757,0.72964183,109730.0,109720.0,0.001]
[1761230958962,0.69694032,109730.0,109720.0,0.01442]
[1761230959167,0.68694032,109730.0,109720.0,0.05788]
[1761230959663,0.66244187,109730.0,109720.0,0.05788]
[1761230960076,0.66244187,109730.0,109720.0,0.01442]
[1761230960276,0.66244187,109730.0,109720.0,0.05788]
[1761230960277,0.51289301,109730.0,109720.0,0.05788]
[1761230960477,0.66244187,109730.0,109720.0,0.01442]
[1761230960778,0.66244187,109730.0,109720.0,0.05788]
[1761230960980,0.66244187,109730.0,109720.0,0.01442]
[1761230961370,0.68694032,109730.0,109720.0,0.03664]
[1761230961696,0.68694032,109730.0,109720.0,0.05788]
[1761230962278,0.68694032,109730.0,109720.0,0.01442]
[1761230964174,0.68694032,109730.0,109720.0,0.03664]
[1761230966383,0.71964183,109730.0,109720.0,0.03664]
[1761230966583,0.71964183,109730.0,109720.0,0.01442]
[1761230966880,0.43648918,109730.0,109720.0,0.001]
[1761230967083,0.0911209,109720.0,109710.0,0.01348873]
[1761230967279,0.77189858,109720.0,109710.0,0.01348873]
[1761230967485,0.76918054,109720.0,109710.0,6.873e-05]
[1761230967685,0.83826168,109720.0,109710.0,6.873e-05]
[1761230967880,0.0911292,109710.0,109700.0,0.01797768]
[1761230968183,0.42475579,109710.0,109700.0,0.00455768]
[1761230968377,0.42475579,109710.0,109700.0,0.06306768]
[1761230968981,0.41475579,109710.0,109700.0,0.06306768]
[1761230969283,0.26520693,109710.0,109700.0,0.06306768]
[1761230969977,0.41475579,109710.0,109700.0,0.06306768]
[1761230970179,0.41475579,109710.0,109700.0,0.07006768]
[1761230971180,0.4474573,109710.0,109700.0,0.07006768]
[1761230971491,0.42292843,109710.0,109700.0,0.07006768]
[1761230971985,0.42292843,109710.0,109700.0,0.04692768]
[1761230972193,0.42292843,109710.0,109700.0,0.07006768]
[1761230972588,0.47200957,109710.0,109700.0,0.07006768]
[1761230973289,0.47200957,109710.0,109700.0,0.04692768]
[1761230973690,0.49208264,109710.0,109700.0,0.01155768]
[1761230973884,0.48116154,109710.0,109700.0,0.01155768]
[1761230974381,0.45938113,109710.0,109700.0,0.02441768]
[1761230974875,0.45938113,109710.0,109700.0,0.07006768]
[1761230975081,0.45938113,109710.0,109700.0,0.06806768]
[1761230975288,0.43938113,109710.0,109700.0,0.06806768]
[1761230975485,0.12393216,109710.0,109700.0,0.06806768]
[1761230975692,0.42302988,109710.0,109700.0,0.06806768]
[1761230975988,0.42302988,109710.0,109700.0,0.15420518]
[1761230975989,0.27348102,109710.0,109700.0,0.15420518]
[1761230976191,0.26529646,109710.0,109700.0,0.15420518]
[1761230976488,0.41484532,109710.0,109700.0,0.06306768]
[1761230977683,0.41484532,109710.0,109700.0,0.15420518]
[1761230978892,0.41484532,109710.0,109700.0,0.06306768]
[1761230979594,0.32371612,109710.0,109700.0,0.15420518]
[1761230979791,0.41484532,109710.0,109700.0,0.15420518]
[1761230980192,0.41484532,109710.0,109700.0,0.06306768]
[1761230980392,0.41484532,109710.0,109700.0,0.15420518]
[1761230980393,0.32371612,109710.0,109700.0,0.15420518]
[1761230980694,0.41484532,109710.0,109700.0,0.15420518]
[1761230981991,0.0246184,109710.0,109700.0,0.20420518]
[1761230982291,0.49860726,109710.0,109700.0,0.15420518]
[1761230982494,0.52038767,109710.0,109700.0,0.19420518]
[1761230982685,0.66993653,109710.0,109700.0,0.19420518]
[1761230984097,0.76106573,109710.0,109700.0,0.06306768]
[1761230986092,0.79379562,109710.0,109700.0,0.15420508]
[1761230987698,0.65634068,109710.0,109700.0,0.20420508]
[1761230987902,0.67000092,109710.0,109700.0,0.20420508]
[1761230988109,0.52045206,109710.0,109700.0,0.20420508]
[1761230988794,0.67000092,109710.0,109700.0,0.20420508]
[1761230989300,0.76112992,109710.0,109700.0,0.20420508]
[1761230989499,0.76112992,109710.0,109700.0,0.15420508]
[1761230990000,0.3709032,109710.0,109700.0,0.15420508]
[1761230990207,0.14962193,109710.0,109700.0,0.42420508]
[1761230990392,7.307e-05,109710.0,109700.0,0.42420508]
[1761230990704,7.307e-05,109710.0,109700.0,0.82420508]
[1761230992097,7.307e-05,109710.0,109700.0,0.82520508]
[1761230993106,7.307e-05,109710.0,109700.0,0.87408888]
[1761230993408,0.14962193,109710.0,109700.0,0.87408888]
[1761230993898,0.14962193,109710.0,109700.0,0.82520508]
[1761230994098,7.307e-05,109710.0,109700.0,0.82520508]
[1761230994294,0.14962193,109710.0,109700.0,0.82520508]
[1761230998109,0.14962193,109710.0,109700.0,0.87408888]
[1761230999006,7.307e-05,109710.0,109700.0,0.87408888]
[1761230999208,7.307e-05,109710.0,109700.0,0.82520508]
[1761231000710,0.14962193,109710.0,109700.0,0.82520508]
[1761231002807,0.39029869,109710.0,109700.0,0.06406768]
[1761231002999,0.39029869,109710.0,109700.0,0.15520388]
[1761231003506,0.71449869,109710.0,109700.0,0.06406768]
[1761231003710,0.73632599,109710.0,109700.0,0.01841768]
[1761231003901,0.79361871,109710.0,109700.0,0.00555768]
[1761231004510,1.19361871,109710.0,109700.0,0.00555768]
[1761231005299,1.19361871,109710.0,109670.0,0.4771395]
[1761231005300,0.0911445,109690.0,109680.0,0.01353]
[1761231005598,0.0911528,109680.0,109670.0,0.05778]
[1761231005809,0.26526548,109680.0,109670.0,0.05778]
[1761231006005,0.41481434,109680.0,109670.0,0.05778]
[1761231006209,0.02456382,109680.0,109670.0,0.05778]
[1761231006414,0.32366154,109680.0,109670.0,0.05778]
[1761231006813,0.32366154,109680.0,109670.0,0.0352]
[1761231007014,0.32366154,109680.0,109670.0,0.05778]
[1761231007411,0.29909772,109680.0,109670.0,0.05778]
[1761231008208,0.14954886,109680.0,109670.0,0.1489411]
[1761231008409,0.04646419,109690.0,109680.0,0.1496028]
[1761231008621,0.47382193,109690.0,109680.0,0.1496028]
[1761231008811,0.64542715,109690.0,109680.0,0.1496028]
[1761231009012,0.64542715,109690.0,109680.0,0.1996028]
[1761231009512,0.64542715,109690.0,109680.0,0.1496028]
[1761231009813,1.19509054,109690.0,109670.0,0.05778]
[1761231010015,0.44899017,109680.0,109670.0,0.05778]
[1761231010426,0.01129,109660.0,109640.0,0.05852816]
[1761231010612,0.34384985,109650.0,109640.0,0.05852816]
[1761231010808,0.35513985,109650.0,109640.0,0.05852816]
[1761231011426,0.35513985,109650.0,109640.0,0.04499816]
[1761231011717,0.50480324,109650.0,109640.0,7.816e-05]
[1761231011912,0.04445,109630.0,109620.0,0.1542125]
[1761231012121,0.34377678,109630.0,109620.0,0.2042125]
[1761231012417,0.3242,109640.0,109620.0,0.86190972]
[1761231012623,0.32427307,109650.0,109640.0,0.0911853]
[1761231012821,0.32427307,109650.0,109640.0,0.4696353]
[1761231012822,0.55592634,109650.0,109640.0,0.4696353]
[1761231013026,7.307e-05,109650.0,109640.0,0.8696353]
[1761231013323,0.02188307,109650.0,109640.0,0.8296353]
[1761231013918,0.20908634,109650.0,109640.0,0.8296353]
[1761231014117,7.307e-05,109650.0,109640.0,0.8296353]
[1761231014315,7.307e-05,109650.0,109640.0,0.8316353]
[1761231014521,0.02188307,109650.0,109640.0,0.4316353]
[1761231014923,0.04452307,109650.0,109640.0,0.4316353]
[1761231015123,0.04452307,109650.0,109640.0,0.4366353]
[1761231017236,0.23172634,109650.0,109640.0,0.4366353]
[1761231017537,0.23172634,109650.0,109640.0,0.2066353]
[1761231017839,0.23172634,109650.0,109640.0,0.1566353]
[1761231018028,0.23172634,109650.0,109640.0,0.2066353]
[1761231018338,0.23172634,109650.0,109640.0,0.1566353]
[1761231018836,0.04445,109680.0,109670.0,0.01353]
[1761231019039,0.02181,109680.0,109670.0,0.4496112]
[1761231019332,0.55585327,109690.0,109680.0,0.1496016]
[1761231019933,0.55593143,109690.0,109680.0,0.1496016]
[1761231021038,0.64707473,109690.0,109680.0,0.1496017]
[1761231021734,0.55893143,109690.0,109680.0,0.1496017]
[1761231022742,0.55693143,109690.0,109680.0,0.1496017]
[1761231023042,0.55693143,109690.0,109680.0,0.1996017]
[1761231023429,0.55693143,109690.0,109680.0,0.1496017]
[1761231023833,0.55693143,109690.0,109680.0,0.1996017]
[1761231024541,0.53429143,109690.0,109680.0,0.3696017]
[1761231024738,0.53429143,109690.0,109680.0,0.1996017]
[1761231025335,0.53329143,109690.0,109680.0,0.4596017]
[1761231025646,0.53429143,109690.0,109680.0,0.2396017]
[1761231025840,0.53329143,109690.0,109680.0,0.2396017]
[1761231026336,0.55634143,109690.0,109680.0,0.2396017]
[1761231027343,0.34608816,109690.0,109680.0,0.4896017]
[1761231027638,0.32427816,109690.0,109680.0,0.4896017]
[1761231027844,7.816e-05,109690.0,109680.0,0.4896017]
[1761231028049,0.00107816,109690.0,109680.0,0.8896017]
[1761231028847,0.23406143,109690.0,109680.0,0.2996017]
[1761231029039,0.23406143,109690.0,109680.0,0.1496017]
[1761231029246,0.23306143,109690.0,109680.0,0.4556017]
[1761231029847,0.23306143,109690.0,109680.0,0.2056017]
[1761231030145,0.23306143,109690.0,109680.0,0.1556017]
[1761231030746,0.24142143,109690.0,109680.0,0.1556017]
[1761231031341,0.33256583,109690.0,109680.0,0.1556017]
[1761231031540,0.33256583,109690.0,109680.0,0.1420717]
[1761231031948,1.2438891,109690.0,109680.0,0.006]
[1761231032150,0.04527439,109690.0,109680.0,0.1559127]
[1761231032352,0.23306143,109690.0,109680.0,0.1559127]
[1761231032647,0.23306143,109690.0,109680.0,0.006]
[1761231032648,0.33256583,109690.0,109680.0,0.006]
[1761231033349,0.33256583,109690.0,109680.0,0.0284]
[1761231033544,0.33256583,109690.0,109680.0,0.1195527]
[1761231033748,0.33256583,109690.0,109680.0,0.1424927]
[1761231034254,0.33256583,109690.0,109680.0,0.05134]
[1761231034750,0.44471898,109690.0,109680.0,0.05134]
[1761231035150,0.46661521,109690.0,109680.0,0.1424927]
[1761231035349,0.46661521,109690.0,109680.0,0.1559127]
[1761231035565,0.36711081,109690.0,109680.0,0.1559127]
[1761231035858,0.43635898,109690.0,109680.0,0.1559127]
[1761231036151,0.45825521,109690.0,109680.0,0.1559127]
[1761231036553,0.36711081,109690.0,109680.0,0.1559127]
[1761231036738,0.34521458,109690.0,109680.0,0.1559127]
[1761231036942,0.43635898,109690.0,109680.0,0.1559127]
[1761231037545,0.45825521,109690.0,109680.0,0.1559127]
[1761231038847,0.46661521,109690.0,109680.0,0.1559127]
[1761231040060,0.45825521,109690.0,109680.0,0.1559127]
[1761231040450,0.46661521,109690.0,109680.0,0.006]
[1761231041152,0.06775439,109690.0,109680.0,0.4359127]
[1761231041355,0.19553637,109690.0,109680.0,0.2059127]
[1761231041550,0.14975637,109690.0,109680.0,0.2059127]
[1761231042150,0.19553637,109690.0,109680.0,0.2059127]
[1761231043046,0.04585816,109690.0,109680.0,0.3459127]
[1761231043251,0.14975637,109690.0,109680.0,0.3459127]
[1761231044956,0.19553637,109690.0,109680.0,0.1559127]
[1761231045155,0.19553637,109690.0,109680.0,0.2559127]
[1761231045754,0.19553637,109690.0,109680.0,0.4659127]
[1761231046455,0.19553637,109690.0,109680.0,0.2559127]
[1761231048360,0.19553637,109690.0,109680.0,0.2659127]
[1761231048963,0.35357458,109690.0,109680.0,0.1559128]
[1761231049258,0.44471908,109690.0,109680.0,0.05134]
[1761231049458,0.46916427,109690.0,109680.0,0.1424928]
[1761231049969,0.46916427,109690.0,109680.0,0.1559128]
[1761231050155,0.4910605,109690.0,109680.0,0.1559128]
[1761231050355,0.391556,109690.0,109680.0,0.2059128]
[1761231050551,0.36965977,109690.0,109680.0,0.1559128]
[1761231050751,0.02452335,109690.0,109680.0,1.15526922]